Workbook

Sheet 월별 예산 요약
B1: 회사 이름
B2: 월별 예산 | E2: 날짜
B4: 예산 합계 | C4: 예상 | D4: 실제 | E4: 차액
B5: 수입 | C5: =수입[[#Totals],[예상]] -> 63,300.00 | D5: =수입[[#Totals],[실제]] -> 57,450.00 | E5: =합계[[#This Row],[실제]]-합계[[#This Row],[예상]] -> (5,850.00)
B6: 지출 | C6: =운영_비용[[#Totals],[예상]]+인건비[[#Totals],[예상]] -> 54,500.00 | D6: =운영_비용[[#Totals],[실제]]+인건비[[#Totals],[실제]] -> 49,630.00 | E6: =합계[[#This Row],[실제]]-합계[[#This Row],[예상]] -> (4,870.00)
B7: 잔액(수입 - 지출) | C7: =C5-C6 -> 8,800.00 | D7: =D5-D6 -> 7,820.00 | E7: =합계[[#Totals],[실제]]-합계[[#Totals],[예상]] -> (980.00)
B9: 이 셀에는 예산 개요 차트가 표시됩니다. 아래쪽 Top5Expenses 표에 상위 5가지 운영 비용이 자동으로 업데이트됩니다.
B10: 가장 높은 상위 5가지 운영 비용 항목
B11: 지출 | C11: 금액 | D11: 지출(%) | E11: 15% 절감
B12: =INDEX(운영_비용[],MATCH(Top5Expenses[[#This Row],[금액]],운영_비용[상위 5가지 금액],0),1) -> 유지 관리 및 수리 | C12: =LARGE(운영_비용[상위 5가지 금액],1) -> 4,600.00 | D12: =Top5Expenses[[#This Row],[금액]]/$D$6 -> 9.3% | E12: =Top5Expenses[[#This Row],[금액]]*0.15 -> 690.00
B13: =INDEX(운영_비용[],MATCH(Top5Expenses[[#This Row],[금액]],운영_비용[상위 5가지 금액],0),1) -> 소모품 | C13: =LARGE(운영_비용[상위 5가지 금액],2) -> 4,500.00 | D13: =Top5Expenses[[#This Row],[금액]]/$D$6 -> 9.1% | E13: =Top5Expenses[[#This Row],[금액]]*0.15 -> 675.00
B14: =INDEX(운영_비용[],MATCH(Top5Expenses[[#This Row],[금액]],운영_비용[상위 5가지 금액],0),1) -> 임대료 또는 담보 대출 | C14: =LARGE(운영_비용[상위 5가지 금액],3) -> 4,500.00 | D14: =Top5Expenses[[#This Row],[금액]]/$D$6 -> 9.1% | E14: =Top5Expenses[[#This Row],[금액]]*0.15 -> 675.00
B15: =INDEX(운영_비용[],MATCH(Top5Expenses[[#This Row],[금액]],운영_비용[상위 5가지 금액],0),1) -> 세금 | C15: =LARGE(운영_비용[상위 5가지 금액],4) -> 3,200.00 | D15: =Top5Expenses[[#This Row],[금액]]/$D$6 -> 6.4% | E15: =Top5Expenses[[#This Row],[금액]]*0.15 -> 480.00
B16: =INDEX(운영_비용[],MATCH(Top5Expenses[[#This Row],[금액]],운영_비용[상위 5가지 금액],0),1) -> 광고 | C16: =LARGE(운영_비용[상위 5가지 금액],5) -> 2,500.00 | D16: =Top5Expenses[[#This Row],[금액]]/$D$6 -> 5.0% | E16: =Top5Expenses[[#This Row],[금액]]*0.15 -> 375.00
B17: 요약 | C17: =SUBTOTAL(109,Top5Expenses[금액]) -> 19,300.00 | D17: =SUBTOTAL(109,Top5Expenses[지출(%)]) -> 38.9% | E17: =SUBTOTAL(109,Top5Expenses[15% 절감]) -> 2,895.00

Sheet 수입
B1: =회사_이름 -> 회사 이름
B2: =BUDGET_Title -> 월별 예산
B4: 수입 | C4: 예상 | D4: 실제 | E4: 상위 5가지 금액 | F4: 차액
B5: 순매출 | C5: 60,000.00 | D5: 54,000.00 | E5: =수입[[#This Row],[실제]]+(10^-6)*ROW(수입[[#This Row],[실제]]) -> 54,000.00 | F5: =수입[[#This Row],[실제]]-수입[[#This Row],[예상]] -> (6,000.00)
B6: 이자 소득 | C6: 3,000.00 | D6: 3,000.00 | E6: =수입[[#This Row],[실제]]+(10^-6)*ROW(수입[[#This Row],[실제]]) -> 3,000.00 | F6: =수입[[#This Row],[실제]]-수입[[#This Row],[예상]] -> 0.00
B7: 자산 판매액(손익) | C7: 300.00 | D7: 450.00 | E7: =수입[[#This Row],[실제]]+(10^-6)*ROW(수입[[#This Row],[실제]]) -> 450.00 | F7: =수입[[#This Row],[실제]]-수입[[#This Row],[예상]] -> 150.00
B8: 총 수입 | C8: =SUBTOTAL(109,수입[예상]) -> 63,300.00 | D8: =SUBTOTAL(109,수입[실제]) -> 57,450.00 | F8: =SUBTOTAL(109,수입[차액]) -> (5,850.00)

Sheet 인건비
B1: =회사_이름 -> 회사 이름
B2: =BUDGET_Title -> 월별 예산
B4: 인건비 | C4: 예상 | D4: 실제 | E4: 상위 5가지 금액 | F4: 차액
B5: 급여 | C5: 9,500.00 | D5: 9,600.00 | E5: =인건비[[#This Row],[실제]]+(10^-6)*ROW(인건비[[#This Row],[실제]]) -> 9,600.00 | F5: =인건비[[#This Row],[예상]]-인건비[[#This Row],[실제]] -> (100.00)
B6: 복리 후생 | C6: 4,000.00 | D6: 0.00 | E6: =인건비[[#This Row],[실제]]+(10^-6)*ROW(인건비[[#This Row],[실제]]) -> 0.00 | F6: =인건비[[#This Row],[예상]]-인건비[[#This Row],[실제]] -> 4,000.00
B7: 수수료 | C7: 5,000.00 | D7: 4,500.00 | E7: =인건비[[#This Row],[실제]]+(10^-6)*ROW(인건비[[#This Row],[실제]]) -> 4,500.00 | F7: =인건비[[#This Row],[예상]]-인건비[[#This Row],[실제]] -> 500.00
B8: 총 인건비 | C8: =SUBTOTAL(109,인건비[예상]) -> 18,500.00 | D8: =SUBTOTAL(109,인건비[실제]) -> 14,100.00 | F8: =SUBTOTAL(109,인건비[차액]) -> 4,400.00

Sheet 운영 비용
B1: =회사_이름 -> 회사 이름
B2: =BUDGET_Title -> 월별 예산
B4: 운영 비용 | C4: 예상 | D4: 실제 | E4: 상위 5가지 금액 | F4: 차액
B5: 광고 | C5: 3,000.00 | D5: 2,500.00 | E5: =운영_비용[[#This Row],[실제]]+(10^-6)*ROW(운영_비용[[#This Row],[실제]]) -> 2,500.00 | F5: =운영_비용[[#This Row],[예상]]-운영_비용[[#This Row],[실제]] -> 500.00
B6: 부채 | C6: 2,000.00 | D6: 2,000.00 | E6: =운영_비용[[#This Row],[실제]]+(10^-6)*ROW(운영_비용[[#This Row],[실제]]) -> 2,000.00 | F6: =운영_비용[[#This Row],[예상]]-운영_비용[[#This Row],[실제]] -> 0.00
B7: 현금 할인 | C7: 1,500.00 | D7: 2,175.00 | E7: =운영_비용[[#This Row],[실제]]+(10^-6)*ROW(운영_비용[[#This Row],[실제]]) -> 2,175.00 | F7: =운영_비용[[#This Row],[예상]]-운영_비용[[#This Row],[실제]] -> (675.00)
B8: 인도 비용 | C8: 2,000.00 | D8: 1,500.00 | E8: =운영_비용[[#This Row],[실제]]+(10^-6)*ROW(운영_비용[[#This Row],[실제]]) -> 1,500.00 | F8: =운영_비용[[#This Row],[예상]]-운영_비용[[#This Row],[실제]] -> 500.00
B9: 감가상각 | C9: 1,000.00 | D9: 1,000.00 | E9: =운영_비용[[#This Row],[실제]]+(10^-6)*ROW(운영_비용[[#This Row],[실제]]) -> 1,000.00 | F9: =운영_비용[[#This Row],[예상]]-운영_비용[[#This Row],[실제]] -> 0.00
B10: 회비 및 구독료 | C10: 500.00 | D10: 525.00 | E10: =운영_비용[[#This Row],[실제]]+(10^-6)*ROW(운영_비용[[#This Row],[실제]]) -> 525.00 | F10: =운영_비용[[#This Row],[예상]]-운영_비용[[#This Row],[실제]] -> (25.00)
B11: 보험료 | C11: 1,300.00 | D11: 1,275.00 | E11: =운영_비용[[#This Row],[실제]]+(10^-6)*ROW(운영_비용[[#This Row],[실제]]) -> 1,275.00 | F11: =운영_비용[[#This Row],[예상]]-운영_비용[[#This Row],[실제]] -> 25.00
B12: 이자 | C12: 2,000.00 | D12: 2,200.00 | E12: =운영_비용[[#This Row],[실제]]+(10^-6)*ROW(운영_비용[[#This Row],[실제]]) -> 2,200.00 | F12: =운영_비용[[#This Row],[예상]]-운영_비용[[#This Row],[실제]] -> (200.00)
B13: 법률 및 감사 | C13: 1,000.00 | D13: 800.00 | E13: =운영_비용[[#This Row],[실제]]+(10^-6)*ROW(운영_비용[[#This Row],[실제]]) -> 800.00 | F13: =운영_비용[[#This Row],[예상]]-운영_비용[[#This Row],[실제]] -> 200.00
B14: 유지 관리 및 수리 | C14: 4,500.00 | D14: 4,600.00 | E14: =운영_비용[[#This Row],[실제]]+(10^-6)*ROW(운영_비용[[#This Row],[실제]]) -> 4,600.00 | F14: =운영_비용[[#This Row],[예상]]-운영_비용[[#This Row],[실제]] -> (100.00)
B15: 사무용품 | C15: 800.00 | D15: 750.00 | E15: =운영_비용[[#This Row],[실제]]+(10^-6)*ROW(운영_비용[[#This Row],[실제]]) -> 750.00 | F15: =운영_비용[[#This Row],[예상]]-운영_비용[[#This Row],[실제]] -> 50.00
B16: 우편 | C16: 400.00 | D16: 350.00 | E16: =운영_비용[[#This Row],[실제]]+(10^-6)*ROW(운영_비용[[#This Row],[실제]]) -> 350.00 | F16: =운영_비용[[#This Row],[예상]]-운영_비용[[#This Row],[실제]] -> 50.00
B17: 임대료 또는 담보 대출 | C17: 4,100.00 | D17: 4,500.00 | E17: =운영_비용[[#This Row],[실제]]+(10^-6)*ROW(운영_비용[[#This Row],[실제]]) -> 4,500.00 | F17: =운영_비용[[#This Row],[예상]]-운영_비용[[#This Row],[실제]] -> (400.00)
B18: 판매 경비 | C18: 350.00 | D18: 400.00 | E18: =운영_비용[[#This Row],[실제]]+(10^-6)*ROW(운영_비용[[#This Row],[실제]]) -> 400.00 | F18: =운영_비용[[#This Row],[예상]]-운영_비용[[#This Row],[실제]] -> (50.00)
B19: 배송 및 보관 | C19: 900.00 | D19: 840.00 | E19: =운영_비용[[#This Row],[실제]]+(10^-6)*ROW(운영_비용[[#This Row],[실제]]) -> 840.00 | F19: =운영_비용[[#This Row],[예상]]-운영_비용[[#This Row],[실제]] -> 60.00
B20: 소모품 | C20: 5,000.00 | D20: 4,500.00 | E20: =운영_비용[[#This Row],[실제]]+(10^-6)*ROW(운영_비용[[#This Row],[실제]]) -> 4,500.00 | F20: =운영_비용[[#This Row],[예상]]-운영_비용[[#This Row],[실제]] -> 500.00
B21: 세금 | C21: 3,000.00 | D21: 3,200.00 | E21: =운영_비용[[#This Row],[실제]]+(10^-6)*ROW(운영_비용[[#This Row],[실제]]) -> 3,200.00 | F21: =운영_비용[[#This Row],[예상]]-운영_비용[[#This Row],[실제]] -> (200.00)
B22: 전화 | C22: 250.00 | D22: 280.00 | E22: =운영_비용[[#This Row],[실제]]+(10^-6)*ROW(운영_비용[[#This Row],[실제]]) -> 280.00 | F22: =운영_비용[[#This Row],[예상]]-운영_비용[[#This Row],[실제]] -> (30.00)
B23: 공과금 | C23: 1,400.00 | D23: 1,385.00 | E23: =운영_비용[[#This Row],[실제]]+(10^-6)*ROW(운영_비용[[#This Row],[실제]]) -> 1,385.00 | F23: =운영_비용[[#This Row],[예상]]-운영_비용[[#This Row],[실제]] -> 15.00
B24: 기타 | C24: 1,000.00 | D24: 750.00 | E24: =운영_비용[[#This Row],[실제]]+(10^-6)*ROW(운영_비용[[#This Row],[실제]]) -> 750.00 | F24: =운영_비용[[#This Row],[예상]]-운영_비용[[#This Row],[실제]] -> 250.00
B25: 총 운영 비용 | C25: =SUBTOTAL(109,운영_비용[예상]) -> 36,000.00 | D25: =SUBTOTAL(109,운영_비용[실제]) -> 35,530.00 | F25: =SUBTOTAL(109,운영_비용[차액]) -> 470.00
